fUST/lending_fUST_20240919
["ID","MTS","AMOUNT","RATE_DAILY","PERIOD"]
[338565418,1726738241679,-1725.121576,0.00016976,2]
[338565420,1726738241693,-657.458498,0.00016976,2]
[338565422,1726738241703,-657.458498,0.00016976,2]
[338565423,1726738241712,-657.458498,0.00016976,2]
[338565424,1726738241721,-840.39483,0.00016976,2]
[338565425,1726738241731,-840.39483,0.00016976,2]
[338565426,1726738241741,-840.39483,0.00016976,2]
[338565427,1726738241751,-1028.619874,0.00016976,2]
[338565428,1726738241761,-1028.619874,0.00016976,2]
[338565429,1726738241770,-1028.619874,0.00016976,2]
[338565430,1726738241779,-840.39483,0.00016976,2]
[338565431,1726738241788,-840.39483,0.00016976,2]
[338565432,1726738241798,-840.39483,0.00016976,2]
[338565433,1726738241807,-1028.619874,0.00016976,2]
[338565434,1726738241816,-1028.619874,0.00016976,2]
[338565435,1726738241825,-1028.619874,0.00016976,2]
[338565436,1726738241836,-345.075833,0.00016976,2]
[338565437,1726738241846,-345.075833,0.00016976,2]
[338565438,1726738241856,-345.075833,0.00016976,2]
[338565439,1726738241866,-345.075833,0.00016976,2]
[338565440,1726738241875,-345.075833,0.00016976,2]
[338565441,1726738241884,-345.075833,0.00016976,2]
[338565442,1726738241894,-175.514511,0.00016976,2]
[338565443,1726738241903,-175.514511,0.00016976,2]
[338565445,1726738241913,-175.514511,0.00016976,2]
[338565447,1726738241923,-175.514511,0.00016976,2]
[338565449,1726738241931,-175.514511,0.00016976,2]
[338565450,1726738241946,-175.514511,0.00016976,2]
[338565452,1726738241955,-482.68959,0.00016976,2]
[338565454,1726738241964,-482.68959,0.00016976,2]
[338565456,1726738241974,-482.68959,0.00016976,2]
[338565458,1726738241984,-482.68959,0.00016976,2]
[338565460,1726738241993,-482.68959,0.00016976,2]
[338565462,1726738242003,-482.68959,0.00016976,2]
[338565464,1726738242013,-269.980605,0.00016976,2]
[338565466,1726738242023,-269.980605,0.00016976,2]
[338565468,1726738242032,-151.0,0.00016976,2]
[338565470,1726738242041,-9233.95801168,0.00016976,2]
[338565472,1726738242050,-500.0,0.00016986,2]
[338565474,1726738242060,-500.0,0.00016986,2]
[338565476,1726738242069,-658.79,0.00016986,2]
[338565478,1726738242079,-1051.26,0.00016986,2]
[338565480,1726738242088,-500.0,0.00016986,2]
[338565482,1726738242098,-585.17,0.00016986,2]
[338565484,1726738242108,-500.0,0.00016986,2]
[338565486,1726738242118,-500.0,0.00016986,2]
[338565488,1726738242127,-500.0,0.00016986,2]
[338565490,1726738242137,-628.16,0.00016986,2]
[338565492,1726738242146,-3188.23,0.00016986,2]
[338565494,1726738242156,-500.0,0.00016986,2]
[338565496,1726738242165,-500.0,0.00016986,2]
[338565498,1726738242174,-500.0,0.00016986,2]
[338565500,1726738242183,-1138.6,0.00016986,2]
[338565502,1726738242193,-987.63,0.00016986,2]
[338565504,1726738242202,-500.0,0.00016986,2]
[338565506,1726738242211,-500.0,0.00016986,2]
[338565508,1726738242221,-505.93586993,0.00016986,2]
[338565510,1726738242230,-1005.75,0.00016986,2]
[338565512,1726738242239,-500.0,0.00016986,2]
[338565513,1726738242248,-500.0,0.00016986,2]
[338565515,1726738242257,-500.0,0.00016986,2]
[338565517,1726738242267,-500.0,0.00016986,2]
[338565519,1726738242276,-500.0,0.00016986,2]
[338565521,1726738242285,-500.0,0.00016986,2]
[338565523,1726738242294,-500.0,0.00016986,2]
[338565525,1726738242303,-910.36,0.00016986,2]
[338565527,1726738242313,-500.0,0.00016986,2]
[338565528,1726738242322,-700.68,0.00016986,2]
[338565530,1726738242332,-533.89,0.00016986,2]
[338565532,1726738242341,-501.77,0.00016986,2]
[338565534,1726738242351,-1044.36,0.00016986,2]
[338565536,1726738242361,-1734.88,0.00016986,2]
[338565538,1726738242370,-408.32711003,0.00016986,2]
[338565540,1726738242380,-500.0,0.00016986,2]
[338565542,1726738242390,-800.09,0.00016986,2]
[338565544,1726738242401,-500.0,0.00016986,2]
[338565546,1726738242412,-500.0,0.00016986,2]
[338565548,1726738242421,-643.66236891,0.00016986,2]
[338565550,1726738242430,-1081.47,0.00016986,2]
[338565551,1726738242446,-1449.9,0.00016986,2]
[338565553,1726738242455,-500.0,0.00016986,2]
[338565555,1726738242464,-517.29,0.00016986,2]
[338565557,1726738242475,-500.0,0.00016986,2]
[338565559,1726738242487,-1244.75,0.00016986,2]
[338565561,1726738242496,-1027.3,0.00016986,2]
[338565563,1726738242505,-500.0,0.00016986,2]
[338565565,1726738242514,-500.0,0.00016986,2]
[338565567,1726738242524,-500.0,0.00016986,2]
[338565569,1726738242533,-989.35,0.00016986,2]
[338565571,1726738242543,-934.54,0.00016986,2]
[338565573,1726738242553,-1733.48,0.00016986,2]
[338565575,1726738242563,-500.0,0.00016986,2]
[338565577,1726738242572,-1137.32,0.00016986,2]
[338565579,1726738242582,-615.15,0.00016986,2]
[338565582,1726738242592,-623.12,0.00016986,2]
[338565583,1726738242601,-500.0,0.00016986,2]
[338565585,1726738242610,-500.0,0.00016986,2]
[338565587,1726738242619,-500.0,0.00016986,2]
[338565589,1726738242628,-500.0,0.00016986,2]
[338565591,1726738242637,-1046.13,0.00016986,2]
[338565594,1726738242647,-500.0,0.00016986,2]
[338565595,1726738242656,-2574.66,0.00016986,2]
[338565597,1726738242665,-500.0,0.00016986,2]
[338565599,1726738242675,-591.85,0.00016986,2]
[338565601,1726738242686,-151.0,0.00016986,2]
[338565604,1726738242695,-151.0,0.00016986,2]
[338565605,1726738242705,-151.0,0.00016986,2]
[338565608,1726738242714,-586.389828,0.00016986,2]
[338565611,1726738242724,-586.389828,0.00016986,2]
[338565613,1726738242733,-2190.814324,0.00016986,2]
[338565615,1726738242742,-1621.706666,0.00016986,2]
[338565617,1726738242752,-151.0,0.00016986,2]
[338565619,1726738242761,-420.709769,0.00016986,2]
[338565621,1726738242770,-420.709769,0.00016986,2]
[338565623,1726738242780,-332.739636,0.00016986,2]
[338565625,1726738242789,-332.739636,0.00016986,2]
[338565627,1726738242798,-151.0,0.00016986,2]
[338565629,1726738242810,-4451.95,0.00016986,2]
[338565631,1726738242823,-657.458498,0.00016986,2]
[338565634,1726738242834,-657.458498,0.00016986,2]
[338565636,1726738242844,-869.76,0.00016986,2]
[338565638,1726738242855,-500.0,0.00016986,2]
[338565640,1726738242864,-500.0,0.00016986,2]
[338565642,1726738242873,-939.1,0.00016986,2]
[338565645,1726738242883,-500.0,0.00016986,2]
[338565646,1726738242892,-500.0,0.00016986,2]
[338565649,1726738242901,-269.980605,0.00016986,2]
[338565652,1726738242911,-269.980605,0.00016986,2]
[338565654,1726738242922,-500.0,0.00016986,2]
[338565656,1726738242934,-151.0,0.00016986,2]
[338565658,1726738242944,-4616.97900584,0.0001724,2]
[338565661,1726738242955,-1621.706666,0.0001725,2]
[338565663,1726738242965,-151.0,0.0001725,2]
[338565665,1726738242975,-420.709769,0.0001725,2]
[338565667,1726738242984,-420.709769,0.0001725,2]
[338565669,1726738242993,-332.739636,0.0001725,2]
[338565671,1726738243002,-332.739636,0.0001725,2]
[338565673,1726738243012,-151.0,0.0001725,2]
[338565675,1726738243022,-4616.97900584,0.0001725,2]
[338565677,1726738243032,-1479.529653,0.0001725,2]
[338565679,1726738243042,-1479.529653,0.0001725,2]
[338565681,1726738243051,-1725.121576,0.0001725,2]
[338565683,1726738243061,-1725.121576,0.0001725,2]
[338565685,1726738243071,-657.458498,0.0001725,2]
[338565687,1726738243080,-657.458498,0.0001725,2]
[338565689,1726738243089,-840.39483,0.0001725,2]
[338565690,1726738243099,-1028.619874,0.0001725,2]
[338565692,1726738243108,-840.39483,0.0001725,2]
[338565694,1726738243118,-1028.619874,0.0001725,2]
[338565696,1726738243128,-345.075833,0.0001725,2]
[338565698,1726738243137,-345.075833,0.0001725,2]
[338565700,1726738243147,-175.514511,0.0001725,2]
[338565702,1726738243156,-175.514511,0.0001725,2]
[338565704,1726738243165,-482.68959,0.0001725,2]
[338565706,1726738243175,-482.68959,0.0001725,2]
[338565708,1726738243184,-500.0,0.0001726,2]
[338565710,1726738243193,-658.79,0.0001726,2]
[338565712,1726738243203,-1051.26,0.0001726,2]
[338565714,1726738243212,-500.0,0.0001726,2]
[338565716,1726738243222,-500.0,0.0001726,2]
[338565718,1726738243231,-585.17,0.0001726,2]
[338565720,1726738243241,-500.0,0.0001726,2]
[338565722,1726738243250,-500.0,0.0001726,2]
[338565724,1726738243259,-500.0,0.0001726,2]
[338565726,1726738243268,-628.16,0.0001726,2]
[338565728,1726738243277,-3188.23,0.0001726,2]
[338565730,1726738243287,-500.0,0.0001726,2]
[338565732,1726738243296,-500.0,0.0001726,2]
[338565735,1726738243306,-1138.6,0.0001726,2]
[338565737,1726738243315,-987.63,0.0001726,2]
[338565739,1726738243325,-255.88240982,0.0001726,2]
[338565740,1726738243334,-500.0,0.0001726,2]
[338565742,1726738243343,-1005.75,0.0001726,2]
[338565744,1726738243352,-500.0,0.0001726,2]
[338565746,1726738243362,-500.0,0.0001726,2]
[338565748,1726738243372,-500.0,0.0001726,2]
[338565751,1726738243382,-500.0,0.0001726,2]
[338565752,1726738243391,-500.0,0.0001726,2]
[338565754,1726738243403,-500.0,0.0001726,2]
[338565756,1726738243413,-500.0,0.0001726,2]
[338565758,1726738243422,-910.36,0.0001726,2]
[338565760,1726738243431,-500.0,0.0001726,2]
[338565763,1726738243444,-700.68,0.0001726,2]
[338565765,1726738243453,-533.89,0.0001726,2]
[338565767,1726738243463,-501.77,0.0001726,2]
[338565769,1726738243472,-1044.36,0.0001726,2]
[338565770,1726738243481,-1734.88,0.0001726,2]
[338565772,1726738243491,-441.34291603,0.0001726,2]
[338565774,1726738243500,-800.09,0.0001726,2]
[338565776,1726738243509,-500.0,0.0001726,2]
[338565778,1726738243519,-500.0,0.0001726,2]
[338565780,1726738243531,-1081.47,0.0001726,2]
[338565782,1726738243541,-1449.9,0.0001726,2]
[338565784,1726738243551,-502.02289673,0.0001726,2]
[338565786,1726738243560,-517.29,0.0001726,2]
[338565788,1726738243570,-500.0,0.0001726,2]
[338565790,1726738243579,-1244.75,0.0001726,2]
[338565792,1726738243589,-1027.3,0.0001726,2]
[338565794,1726738243598,-500.0,0.0001726,2]
[338565796,1726738243607,-500.0,0.0001726,2]
[338565798,1726738243616,-500.0,0.0001726,2]
[338565800,1726738243625,-989.35,0.0001726,2]
[338565802,1726738243635,-934.54,0.0001726,2]
[338565804,1726738243644,-151.0,0.0001726,2]
[338565806,1726738243653,-1733.48,0.0001726,2]
[338565808,1726738243662,-500.0,0.0001726,2]
[338565810,1726738243671,-1137.32,0.0001726,2]
[338565812,1726738243680,-615.15,0.0001726,2]
[338565814,1726738243690,-151.0,0.0001726,2]
[338565816,1726738243699,-623.12,0.0001726,2]
[338565818,1726738243708,-625.34922717,0.0001726,2]
[338565820,1726738243718,-151.0,0.0001726,2]
[338565822,1726738243727,-500.0,0.0001726,2]
[338565824,1726738243738,-500.0,0.0001726,2]
[338565826,1726738243748,-500.0,0.0001726,2]
[338565828,1726738243757,-1046.13,0.0001726,2]
[338565830,1726738243767,-500.0,0.0001726,2]
[338565832,1726738243778,-151.0,0.0001726,2]
[338565834,1726738243787,-2574.66,0.0001726,2]
[338565836,1726738243797,-500.0,0.0001726,2]
[338565838,1726738243807,-591.85,0.0001726,2]
[338565840,1726738243816,-151.0,0.0001726,2]
[338565842,1726738243825,-184.202906,0.0001726,2]
[338565844,1726738243835,-184.202906,0.0001726,2]
[338565846,1726738243846,-197.778075,0.0001726,2]
[338565848,1726738243856,-197.778075,0.0001726,2]
[338565850,1726738243865,-151.0,0.0001726,2]
[338565852,1726738243876,-151.0,0.0001726,2]
[338565854,1726738243885,-153.278653,0.0001726,2]
[338565856,1726738243894,-151.0,0.0001726,2]
[338565858,1726738243904,-586.389828,0.0001726,2]
[338565860,1726738243913,-586.389828,0.0001726,2]
[338565862,1726738243922,-586.389828,0.0001726,2]
[338565864,1726738243931,-586.389828,0.0001726,2]
[338565866,1726738243942,-2190.814324,0.0001726,2]
[338565868,1726738243951,-2190.814324,0.0001726,2]
[338565869,1726738243960,-1621.706666,0.0001726,2]
[338565871,1726738243970,-151.0,0.0001726,2]
[338565873,1726738243979,-420.709769,0.0001726,2]
[338565875,1726738243989,-420.709769,0.0001726,2]
[338565877,1726738243998,-332.739636,0.0001726,2]
[338565879,1726738244007,-332.739636,0.0001726,2]
[338565881,1726738244017,-151.0,0.0001726,2]
[338565883,1726738244026,-4451.95,0.0001726,2]
[338565885,1726738244035,-657.458498,0.0001726,2]
[338565887,1726738244044,-657.458498,0.0001726,2]
[338565889,1726738244053,-869.76,0.0001726,2]
[338565891,1726738244063,-597.05510064,0.0001726,2]
[338565893,1726738244072,-500.0,0.0001726,2]
[338565895,1726738244081,-939.1,0.0001726,2]
[338565897,1726738244091,-262.06033419,0.0001726,2]
[338565899,1726738244101,-500.0,0.0001726,2]
[338565901,1726738244110,-269.980605,0.0001726,2]
[338565903,1726738244119,-269.980605,0.0001726,2]
[338565905,1726738244129,-500.0,0.0001726,2]
[338565907,1726738244139,-501.85661138,0.00017314,2]
[338565909,1726738244148,-500.0,0.00017314,2]
[338565911,1726738244158,-500.0,0.00017314,2]
[338565913,1726738244167,-4616.97900584,0.00017524,2]
[338565915,1726738244177,-500.0,0.00017534,2]
[338565918,1726738244187,-658.79,0.00017534,2]
[338565920,1726738244196,-1051.26,0.00017534,2]
[338565922,1726738244206,-500.0,0.00017534,2]
[338565924,1726738244215,-500.0,0.00017534,2]
[338565926,1726738244224,-585.17,0.00017534,2]
[338565943,1726738244419,-500.0,0.00017534,2]
[338565945,1726738244430,-500.0,0.00017534,2]
[338565947,1726738244439,-500.0,0.00017534,2]
[338565949,1726738244450,-628.16,0.00017534,2]
[338565951,1726738244460,-3188.23,0.00017534,2]
[338565952,1726738244470,-596.71466559,0.00017534,2]
[338565955,1726738244481,-500.0,0.00017534,2]
[338565956,1726738244491,-1138.6,0.00017534,2]
[338565958,1726738244500,-987.63,0.00017534,2]
[338565960,1726738244509,-500.0,0.00017534,2]
[338565962,1726738244519,-427.33169991,0.00017534,2]
[338565964,1726738244528,-1005.75,0.00017534,2]
[338565967,1726738244537,-500.0,0.00017534,2]
[338565969,1726738244548,-500.0,0.00017534,2]
[338565971,1726738244558,-500.0,0.00017534,2]
[338565973,1726738244567,-500.0,0.00017534,2]
[338565975,1726738244578,-500.0,0.00017534,2]
[338565977,1726738244587,-500.0,0.00017534,2]
[338565979,1726738244596,-910.36,0.00017534,2]
[338565981,1726738244606,-500.0,0.00017534,2]
[338565983,1726738244616,-700.68,0.00017534,2]
[338565985,1726738244625,-533.89,0.00017534,2]
[338565987,1726738244635,-501.77,0.00017534,2]
[338565989,1726738244644,-1044.36,0.00017534,2]
[338565991,1726738244654,-1734.88,0.00017534,2]
[338565993,1726738244664,-800.09,0.00017534,2]
[338565995,1726738244674,-500.0,0.00017534,2]
[338565997,1726738244684,-500.0,0.00017534,2]
[338565999,1726738244698,-1081.47,0.00017534,2]
[338566001,1726738244709,-1449.9,0.00017534,2]
[338566003,1726738244725,-517.29,0.00017534,2]
[338566005,1726738244737,-500.0,0.00017534,2]
[338566007,1726738244746,-1244.75,0.00017534,2]
[338566009,1726738244756,-1027.3,0.00017534,2]
[338566011,1726738244766,-500.0,0.00017534,2]
[338566013,1726738244776,-500.0,0.00017534,2]
[338566015,1726738244785,-989.35,0.00017534,2]
[338566017,1726738244795,-934.54,0.00017534,2]
[338566019,1726738244805,-151.0,0.00017534,2]
[338566021,1726738244814,-1733.48,0.00017534,2]
[338566023,1726738244824,-500.0,0.00017534,2]
[338566026,1726738244835,-1137.32,0.00017534,2]
[338566028,1726738244844,-615.15,0.00017534,2]
[338566030,1726738244854,-151.0,0.00017534,2]
[338566032,1726738244863,-623.12,0.00017534,2]
[338566034,1726738244873,-156.785684,0.00017534,2]
[338566036,1726738244883,-500.0,0.00017534,2]
[338566038,1726738244892,-500.0,0.00017534,2]
[338566040,1726738244902,-500.0,0.00017534,2]
[338566042,1726738244912,-500.0,0.00017534,2]
[338566044,1726738244922,-1046.13,0.00017534,2]
[338566046,1726738244931,-151.0,0.00017534,2]
[338566048,1726738244941,-2574.66,0.00017534,2]
[338566050,1726738244951,-500.0,0.00017534,2]
[338566052,1726738244960,-591.85,0.00017534,2]
[338566054,1726738244970,-184.202906,0.00017534,2]
[338566056,1726738244980,-184.202906,0.00017534,2]
[338566058,1726738244990,-197.778075,0.00017534,2]
[338566060,1726738245000,-197.778075,0.00017534,2]
[338566062,1726738245010,-586.389828,0.00017534,2]
[338566064,1726738245019,-586.389828,0.00017534,2]
[338566065,1726738245028,-2190.814324,0.00017534,2]
[338566067,1726738245038,-1621.706666,0.00017534,2]
[338566070,1726738245047,-151.0,0.00017534,2]
[338566072,1726738245059,-420.709769,0.00017534,2]
[338566074,1726738245069,-420.709769,0.00017534,2]
[338566076,1726738245079,-332.739636,0.00017534,2]
[338566078,1726738245089,-332.739636,0.00017534,2]
[338566080,1726738245100,-151.0,0.00017534,2]
[338566082,1726738245109,-4451.95,0.00017534,2]
[338566084,1726738245119,-1479.529653,0.00017534,2]
[338566086,1726738245129,-1479.529653,0.00017534,2]
[338566088,1726738245140,-1725.121576,0.00017534,2]
[338566090,1726738245150,-1725.121576,0.00017534,2]
[338566092,1726738245159,-657.458498,0.00017534,2]
[338566094,1726738245168,-657.458498,0.00017534,2]
[338566096,1726738245179,-840.39483,0.00017534,2]
[338566098,1726738245189,-1028.619874,0.00017534,2]
[338566100,1726738245199,-840.39483,0.00017534,2]
[338566102,1726738245208,-1028.619874,0.00017534,2]
[338566104,1726738245218,-345.075833,0.00017534,2]
[338566106,1726738245228,-345.075833,0.00017534,2]
[338566108,1726738245238,-175.514511,0.00017534,2]
[338566110,1726738245248,-175.514511,0.00017534,2]
[338566112,1726738245257,-869.76,0.00017534,2]
[338566114,1726738245267,-648.14497081,0.00017534,2]
[338566116,1726738245276,-939.1,0.00017534,2]
[338566118,1726738245286,-482.68959,0.00017534,2]
[338566120,1726738245296,-482.68959,0.00017534,2]
[338566122,1726738245306,-500.0,0.00017534,2]
[338566124,1726738245316,-269.980605,0.00017534,2]
[338566126,1726738245326,-269.980605,0.00017534,2]
[338566128,1726738245335,-500.0,0.00017534,2]
[338566130,1726738245345,-150.112233,0.000178,2]
[338566132,1726738245355,-500.0,0.00017808,2]
[338566134,1726738245364,-658.79,0.00017808,2]
[338566136,1726738245374,-1051.26,0.00017808,2]
[338566138,1726738245383,-500.0,0.00017808,2]
[338566140,1726738245394,-500.0,0.00017808,2]
[338566142,1726738245408,-585.17,0.00017808,2]
[338566144,1726738245418,-378.31421143,0.00017808,2]
[338566146,1726738245428,-500.0,0.00017808,2]
[338566148,1726738245437,-500.0,0.00017808,2]
[338566150,1726738245447,-628.16,0.00017808,2]
[338566152,1726738245456,-3188.23,0.00017808,2]
[338566154,1726738245466,-500.0,0.00017808,2]
[338566156,1726738245475,-1138.6,0.00017808,2]
[338566158,1726738245485,-987.63,0.00017808,2]
[338566160,1726738245496,-625.04524034,0.00017808,2]
[338566162,1726738245505,-1005.75,0.00017808,2]
[338566164,1726738245515,-500.0,0.00017808,2]
[338566166,1726738245525,-500.0,0.00017808,2]
[338566168,1726738245534,-500.0,0.00017808,2]
[338566170,1726738245544,-492.76905113,0.00017808,2]
[338566172,1726738245554,-514.78046155,0.00017808,2]
[338566174,1726738245565,-500.0,0.00017808,2]
[338566176,1726738245574,-910.36,0.00017808,2]
[338566178,1726738245584,-500.0,0.00017808,2]
[338566181,1726738245594,-700.68,0.00017808,2]
[338566183,1726738245604,-533.89,0.00017808,2]
[338566185,1726738245613,-501.77,0.00017808,2]
[338566187,1726738245623,-1044.36,0.00017808,2]
[338566189,1726738245632,-1734.88,0.00017808,2]
[338566191,1726738245643,-800.09,0.00017808,2]
[338566193,1726738245654,-500.0,0.00017808,2]
[338566195,1726738245664,-500.0,0.00017808,2]
[338566197,1726738245674,-1081.47,0.00017808,2]
[338566199,1726738245685,-1449.9,0.00017808,2]
[338566201,1726738245695,-517.29,0.00017808,2]
[338566203,1726738245705,-500.0,0.00017808,2]
[338566205,1726738245714,-1244.75,0.00017808,2]
[338566207,1726738245724,-1027.3,0.00017808,2]
[338566209,1726738245734,-500.0,0.00017808,2]
[338566211,1726738245743,-257.51735784,0.00017808,2]
[338566213,1726738245753,-151.0,0.00017808,2]
[338566215,1726738245763,-989.35,0.00017808,2]
[338566217,1726738245773,-934.54,0.00017808,2]
[338566219,1726738245782,-151.0,0.00017808,2]
[338566221,1726738245792,-1733.48,0.00017808,2]
[338566223,1726738245802,-500.0,0.00017808,2]
[338566225,1726738245812,-1137.32,0.00017808,2]
[338566227,1726738245821,-615.15,0.00017808,2]
[338566229,1726738245831,-151.0,0.00017808,2]
[338566231,1726738245841,-623.12,0.00017808,2]
[338566233,1726738245850,-500.0,0.00017808,2]
[338566235,1726738245860,-500.0,0.00017808,2]
[338566237,1726738245870,-500.0,0.00017808,2]
[338566239,1726738245879,-500.0,0.00017808,2]
[338566241,1726738245889,-1046.13,0.00017808,2]
[338566243,1726738245899,-151.0,0.00017808,2]
[338566244,1726738245908,-2574.66,0.00017808,2]
[338566247,1726738245918,-500.0,0.00017808,2]
[338566248,1726738245928,-591.85,0.00017808,2]
[338566250,1726738245937,-184.202906,0.00017808,2]
[338566252,1726738245948,-184.202906,0.00017808,2]
[338566254,1726738245958,-197.778075,0.00017808,2]
[338566256,1726738245967,-197.778075,0.00017808,2]
[338566258,1726738245977,-586.389828,0.00017808,2]
[338566260,1726738245987,-586.389828,0.00017808,2]
[338566262,1726738245997,-2190.814324,0.00017808,2]
[338566264,1726738246007,-1621.706666,0.00017808,2]
[338566266,1726738246017,-151.0,0.00017808,2]
[338566268,1726738246026,-420.709769,0.00017808,2]
[338566270,1726738246036,-420.709769,0.00017808,2]
[338566272,1726738246046,-332.739636,0.00017808,2]
[338566274,1726738246055,-332.739636,0.00017808,2]
[338566276,1726738246065,-4451.95,0.00017808,2]
[338566278,1726738246076,-1479.529653,0.00017808,2]
[338566279,1726738246086,-1479.529653,0.00017808,2]
[338566281,1726738246096,-1725.121576,0.00017808,2]
[338566283,1726738246106,-1725.121576,0.00017808,2]
[338566285,1726738246115,-657.458498,0.00017808,2]
[338566287,1726738246125,-657.458498,0.00017808,2]
[338566289,1726738246135,-840.39483,0.00017808,2]
[338566291,1726738246144,-1028.619874,0.00017808,2]
[338566293,1726738246154,-840.39483,0.00017808,2]
[338566295,1726738246164,-1028.619874,0.00017808,2]
[338566297,1726738246173,-345.075833,0.00017808,2]
[338566299,1726738246183,-345.075833,0.00017808,2]
[338566301,1726738246194,-175.514511,0.00017808,2]
[338566303,1726738246204,-175.514511,0.00017808,2]
[338566305,1726738246213,-869.76,0.00017808,2]
[338566307,1726738246225,-939.1,0.00017808,2]
[338566310,1726738246235,-482.68959,0.00017808,2]
[338566312,1726738246246,-500.0,0.00017808,2]
[338566314,1726738246256,-482.68959,0.00017808,2]
[338566316,1726738246266,-269.980605,0.00017808,2]
[338566318,1726738246276,-269.980605,0.00017808,2]
[338566320,1726738246286,-513.78535567,0.00017808,2]
[338566322,1726738246295,-500.0,0.00017808,2]
[338566324,1726738246305,-420.0,0.00017952,2]
[338566326,1726738246315,-150.112233,0.00018,2]
[338566328,1726738246325,-7263.64716659,0.00018,10]
[338566330,1726738246335,-420.0,0.0001807,2]
[338566332,1726738246344,-2169.89603409,0.00018081,5]
[338566334,1726738246356,-78297.34,0.00018081,2]
[338566336,1726738246365,-9916.88,0.00018081,2]
[338566338,1726738246375,-1572.38,0.00018081,2]
[338566340,1726738246385,-500.0,0.00018081,2]
[338566342,1726738246395,-963.67,0.00018081,2]
[338566344,1726738246406,-1295.73,0.00018081,2]
[338566346,1726738246416,-500.0,0.00018081,2]
[338566349,1726738246426,-1165.61,0.00018081,2]
[338566352,1726738246436,-500.0,0.00018081,2]
[338566354,1726738246447,-500.0,0.00018081,2]
[338566356,1726738246457,-1112.29,0.00018081,2]
[338566358,1726738246466,-1479.529653,0.00018081,2]
[338566360,1726738246475,-500.0,0.00018081,2]
[338566362,1726738246485,-1479.529653,0.00018081,2]
[338566364,1726738246496,-1725.121576,0.00018081,2]
[338566366,1726738246505,-1725.121576,0.00018081,2]
[338566368,1726738246514,-1004.85,0.00018081,2]
[338566370,1726738246523,-840.39483,0.00018081,2]
[338566372,1726738246533,-1028.619874,0.00018081,2]
[338566374,1726738246542,-840.39483,0.00018081,2]
[338566376,1726738246551,-1028.619874,0.00018081,2]
[338566378,1726738246560,-953.59,0.00018081,2]
[338566380,1726738246571,-345.075833,0.00018081,2]
[338566382,1726738246580,-555.96,0.00018081,2]
[338566384,1726738246589,-345.075833,0.00018081,2]
[338566386,1726738246599,-175.514511,0.00018081,2]
[338566388,1726738246608,-500.0,0.00018081,2]
[338566389,1726738246618,-175.514511,0.00018081,2]
[338566391,1726738246627,-500.0,0.00018081,2]
[338566393,1726738246636,-500.0,0.00018081,2]
[338566395,1726738246646,-482.68959,0.00018081,2]
[338566398,1726738246656,-482.68959,0.00018081,2]
[338566399,1726738246665,-269.980605,0.00018081,2]
[338566401,1726738246674,-269.980605,0.00018081,2]
[338566403,1726738246684,-500.0,0.00018082,2]
[338566405,1726738246693,-658.79,0.00018082,2]
[338566407,1726738246703,-1051.26,0.00018082,2]
[338566409,1726738246712,-500.0,0.00018082,2]
[338566411,1726738246722,-584.13506093,0.00018082,2]
[338566413,1726738246732,-585.17,0.00018082,2]